bitfinex/quotes_BTCUSD_20250418
["timestamp","ask_amount","ask_price","bid_price","bid_amount"]
[1744954344481,0.01184174,84447.0,84444.0,0.09473734]
[1744954347815,0.00236793,84448.0,84445.0,0.09473541]
[1744954348012,0.0118416,84448.0,84445.0,0.09473541]
[1744954348224,0.01184188,84446.0,84442.0,0.09473884]
[1744954349372,0.01184174,84447.0,84443.0,0.09473755]
[1744954349585,0.01184188,84446.0,84441.0,0.34]
[1744954349756,0.01184202,84445.0,84441.0,0.34]
[1744954351044,0.01184202,84445.0,84442.0,0.09473958]
[1744954351265,0.01184216,84444.0,84441.0,0.34]
[1744954351804,0.01421023,84443.0,84440.0,0.00894765]
[1744954352009,0.01184244,84442.0,84439.0,0.34]
[1744954352207,0.2486914,84442.0,84439.0,0.34]
[1744954352651,0.2486914,84442.0,84439.0,0.348798]
[1744954353710,0.01184244,84442.0,84439.0,0.008798]
[1744954353910,0.01184258,84441.0,84438.0,0.34]
[1744954354342,0.01184258,84441.0,83150.0,0.03]
[1744954354343,0.01184357,84434.0,84433.0,0.00885741]
[1744954354548,0.01184371,84433.0,84430.0,0.51453042]
[1744954354749,0.01184371,84433.0,84430.0,0.34]
[1744954355141,0.23686859,84435.0,84430.0,0.34]
[1744954355346,0.23688262,84430.0,84429.0,0.00155656]
[1744954355567,0.23925055,84430.0,84429.0,0.00155656]
[1744954358279,0.23688262,84430.0,84429.0,0.00155656]
[1744954358494,0.23925055,84430.0,84429.0,0.00155656]
[1744954358824,0.23688262,84430.0,84429.0,0.00155656]
[1744954358992,0.23925055,84430.0,84429.0,0.00155656]
[1744954367653,0.01184385,84432.0,84429.0,0.00155656]
[1744954368032,0.01184385,84432.0,84429.0,0.09630981]
[1744954368270,0.01184328,84436.0,84429.0,0.00155656]
[1744954368439,0.01184328,84436.0,84432.0,0.09474994]
[1744954368842,0.01184342,84435.0,84432.0,0.09474994]
[1744954369201,0.01184357,84434.0,84430.0,0.10659642]
[1744954369636,0.01184357,84434.0,84430.0,0.09475229]
[1744954370043,0.01184385,84432.0,84429.0,0.00155656]
[1744954370245,0.00236793,84431.0,84429.0,0.00155656]
[1744954370790,0.00236793,84431.0,84429.0,0.00255656]
[1744954371133,0.00236793,84431.0,84429.0,0.00155656]
[1744954376785,0.23924973,84431.0,84429.0,0.00155656]
[1744954379669,0.0964,84430.0,84429.0,0.00155656]
[1744954380140,0.21921584,84430.0,84429.0,0.00155656]
[1744954381763,0.21921584,84430.0,84429.0,0.00055656]
[1744954388024,0.001,84430.0,84429.0,0.00055656]
[1744954389129,0.00336793,84430.0,84429.0,0.00055656]
[1744954390450,0.001,84430.0,84429.0,0.09531073]
[1744954392174,0.001,84430.0,84429.0,0.00055656]
[1744954397290,0.001,84430.0,84429.0,0.00155656]
[1744954401566,0.001,84430.0,84429.0,0.40229741]
[1744954401798,0.001,84430.0,84429.0,0.56824532]
[1744954402741,0.001,84430.0,84429.0,0.70228532]
[1744954403445,0.001,84430.0,84429.0,0.56824532]
[1744954403660,0.001,84430.0,84429.0,0.70228532]
[1744954403906,0.001,84430.0,84429.0,0.80228532]
[1744954404837,0.001,84430.0,84429.0,1.21428532]
[1744954405855,0.001,84430.0,84429.0,0.85918791]
[1744954406720,0.0493,84461.0,84460.0,0.09471939]
[1744954406941,0.0453,84463.0,84461.0,0.0947172]
[1744954407146,0.0008426,84464.0,84463.0,0.09471602]
[1744954407353,0.0008426,84464.0,84462.0,0.09471635]
[1744954408672,0.01268196,84464.0,84461.0,0.0947172]
[1744954409106,0.01183964,84462.0,84458.0,0.09472061]
[1744954409312,0.01183978,84461.0,84458.0,0.09472061]
[1744954409524,0.00236793,84461.0,84458.0,0.09472061]
[1744954409725,0.01420757,84462.0,84458.0,0.09472061]
[1744954410172,0.00236793,84462.0,84459.0,0.09471957]
[1744954413394,0.01420757,84462.0,84459.0,0.09471957]
[1744954414571,0.01420757,84462.0,84456.0,0.09472306]
[1744954414779,0.01183992,84460.0,84456.0,0.09472306]
[1744954416402,0.01184034,84457.0,84454.0,0.34]
[1744954416632,0.23917947,84456.0,84454.0,0.34]
[1744954417858,0.0118409,84453.0,84448.0,0.3518416]
[1744954418058,0.0118409,84453.0,84449.0,0.43473153]
[1744954418616,0.01420883,84453.0,84449.0,0.43473153]
[1744954418846,0.0118409,84453.0,84449.0,0.43473153]
[1744954419048,0.01184076,84454.0,84449.0,0.09473153]
[1744954419262,0.01420883,84453.0,84449.0,0.09473153]
[1744954419581,0.00236793,84453.0,84449.0,0.10338451]
[1744954421021,0.00236793,84453.0,84449.0,0.09473153]
[1744954422613,0.01420883,84453.0,84449.0,0.09473153]
[1744954422816,0.01184118,84451.0,84445.0,0.34]
[1744954423127,0.01184132,84450.0,84445.0,0.34]
[1744954423319,0.01184132,84450.0,84445.0,0.35184202]
[1744954423963,0.01184118,84451.0,84447.0,0.434733]
[1744954424429,0.01184104,84452.0,84447.0,0.434733]
[1744954424757,0.01420883,84453.0,84450.0,0.09473053]
[1744954426876,0.00236793,84453.0,84450.0,0.09473053]
[1744954427288,0.10244034,84457.0,84454.0,0.09472606]
[1744954427514,0.0906,84457.0,84454.0,0.09472606]
[1744954427953,0.0906,84457.0,84456.0,0.09472387]
[1744954428161,0.0456,84463.0,84461.0,0.09471725]
[1744954428354,0.13128755,84462.0,84459.0,0.09471959]
[1744954428804,0.01183992,84460.0,84456.0,0.09472387]
[1744954429070,0.01183978,84461.0,84457.0,0.09472203]
[1744954429313,0.13128769,84461.0,84457.0,0.09472203]
[1744954431147,0.13128769,84461.0,84456.0,0.09472387]
[1744954431148,0.01183992,84460.0,84456.0,0.09472387]
[1744954436890,0.13128769,84461.0,84457.0,0.09472184]
[1744954439227,0.01183992,84460.0,84457.0,0.09472184]
[1744954440284,0.01184006,84459.0,84456.0,0.09472387]
[1744954441082,0.01184062,84455.0,84450.0,0.34]
[1744954441285,0.01184062,84455.0,84451.0,0.09472879]
[1744954441534,0.24865188,84456.0,84452.0,0.43472739]
[1744954442331,0.01184048,84456.0,84452.0,0.43472739]
[1744954444055,0.01184076,84454.0,84450.0,0.43472993]
[1744954444423,0.248657,84454.0,84450.0,0.34]
[1744954444655,0.0118409,84453.0,84450.0,0.34]
[1744954446375,0.0472,84452.0,84450.0,0.34]
[1744954446575,0.0472,84452.0,84450.0,0.43472983]
[1744954447485,0.0495,84455.0,84452.0,0.09472785]
[1744954452847,0.0495,84455.0,84453.0,0.43472638]
[1744954453367,0.0118402,84458.0,84454.0,0.09472537]
[1744954455075,0.0118402,84458.0,84455.0,0.09472433]
[1744954459146,0.01184006,84459.0,84455.0,0.09472433]
[1744954463221,0.0495,84469.0,84459.0,0.01184006]
[1744954463371,0.0495,84469.0,84462.0,0.09471621]
[1744954463574,0.0472,84471.0,84462.0,0.43471621]
[1744954468155,0.2989359,84476.0,84463.0,0.35454085]
[1744954468156,0.0503426,84476.0,84463.0,0.35454085]
[1744954468355,0.01183782,84475.0,84463.0,0.35454085]
[1744954468732,0.0503426,84476.0,84463.0,0.35454085]
[1744954468935,0.0008426,84476.0,84463.0,0.35554085]
[1744954469139,0.0008426,84476.0,84463.0,0.01554085]
[1744954469343,0.0008426,84476.0,84463.0,0.01790833]
[1744954469909,0.0008426,84476.0,84463.0,0.01554085]
[1744954472362,0.01183782,84475.0,84463.0,0.01554085]
[1744954472559,0.0008426,84476.0,84463.0,0.01554085]
[1744954473173,0.01268028,84476.0,84463.0,0.01554085]
[1744954473562,0.0008426,84476.0,84463.0,0.01554085]
[1744954481857,0.0008426,84476.0,84463.0,0.35554085]
[1744954483816,0.01268028,84476.0,84463.0,0.35554085]
[1744954484179,0.0008426,84476.0,84463.0,0.35554085]
[1744954491279,0.0008426,84476.0,84463.0,0.35454085]
[1744954495784,0.0008426,84476.0,84463.0,0.48878085]
[1744954500297,0.0473,84472.0,84463.0,0.48878085]
[1744954511175,0.0008426,84476.0,84463.0,0.13424]
[1744954511176,0.0494426,84464.0,84463.0,0.13424]
[1744954511421,0.0494426,84464.0,84454.0,0.26933429]
[1744954511422,0.23679287,84462.0,84454.0,0.26933429]
[1744954511648,0.05944006,84459.0,84454.0,0.26933403]
[1744954511885,0.0476,84457.0,84456.0,0.09472387]
[1744954513258,0.0476,84457.0,84453.0,0.4347264]
[1744954513587,0.0476,84457.0,84454.0,0.10656576]
[1744954514175,0.0476,84457.0,84456.0,0.09472387]
[1744954516314,0.0476,84457.0,84454.0,0.094725]
[1744954516976,0.05944034,84457.0,84454.0,0.094725]
[1744954517402,0.0476,84457.0,84455.0,0.094724]
[1744954517759,0.0476,84457.0,84455.0,0.434724]
[1744954526764,0.0476,84457.0,84455.0,0.18996133]
[1744954526918,0.0476,84457.0,84455.0,0.094724]
[1744954527699,0.01183978,84461.0,84457.0,0.09472189]
[1744954527904,0.0476,84462.0,84460.0,0.0947191]
[1744954528102,0.0476,84462.0,84457.0,0.09472245]
[1744954528103,0.01183992,84460.0,84457.0,0.09472245]
[1744954528310,0.01183978,84461.0,84457.0,0.09472245]
[1744954528688,0.29623345,84462.0,84458.0,0.09472094]
[1744954530471,0.05943964,84462.0,84458.0,0.09472094]
[1744954532971,0.01183978,84461.0,84458.0,0.09472094]
[1744954534528,0.01184006,84459.0,84456.0,0.34]
[1744954534722,0.23680409,84458.0,84456.0,0.34]
[1744954534969,0.049,84457.0,84456.0,0.34]
[1744954535169,0.01184104,84452.0,84449.0,0.43473092]
[1744954535322,0.0118409,84453.0,84450.0,0.44]
[1744954535529,0.01184146,84449.0,84446.0,0.09473478]
[1744954535887,0.01184132,84450.0,84446.0,0.43473478]
[1744954537223,0.01184132,84450.0,84447.0,0.43473331]
[1744954537428,0.01184118,84451.0,84447.0,0.43473331]
[1744954538243,0.01184118,84451.0,84447.0,0.09473331]
[1744954542636,0.01184104,84452.0,84448.0,0.43473205]
[1744954543870,0.01420883,84453.0,84450.0,0.09473027]
[1744954544072,0.01368196,84464.0,84452.0,0.09472836]
[1744954544272,0.01368196,84464.0,84457.0,0.0947219]
[1744954544273,0.0474,84460.0,84457.0,0.0947219]
[1744954544473,0.0018426,84464.0,84463.0,0.09471602]
[1744954551221,0.0008426,84464.0,84463.0,0.09471602]
[1744954554270,0.01183964,84462.0,84459.0,0.43472012]
[1744954554518,0.0118395,84463.0,84460.0,0.09471868]
[1744954554723,0.01268196,84464.0,84460.0,0.09471868]
[1744954554917,0.0008426,84464.0,84462.0,0.09471696]
[1744954556056,0.00321053,84464.0,84459.0,0.09472014]
[1744954556207,0.00321053,84464.0,84459.0,0.1065602]
[1744954556409,0.00321053,84464.0,84460.0,0.01183992]
[1744954557062,0.00321053,84464.0,84461.0,0.09471765]
[1744954561027,0.0608402,84458.0,84455.0,0.34]
[1744954561432,0.049,84458.0,84455.0,0.43472392]
[1744954561608,0.049,84458.0,84456.0,0.09472321]
[1744954562397,0.0592395,84463.0,84460.0,0.09471917]
[1744954562774,0.01183978,84461.0,84457.0,0.43472177]
[1744954563701,0.24863551,84461.0,84457.0,0.09472177]
[1744954564074,0.01183978,84461.0,84457.0,0.09472177]
[1744954564628,0.01184006,84459.0,84456.0,0.34]
[1744954565270,0.01184006,84459.0,84456.0,0.43472315]
[1744954566126,0.01183992,84460.0,84456.0,0.43472315]
[1744954568340,0.01183992,84460.0,84456.0,0.09472315]
[1744954569166,0.24863479,84462.0,84457.0,0.09472177]
[1744954569365,0.01183992,84460.0,84457.0,0.09472177]
[1744954571744,0.01420771,84461.0,84457.0,0.09472177]
[1744954574165,0.00236793,84461.0,84457.0,0.09472177]
[1744954575577,0.01420771,84461.0,84458.0,0.43472091]
[1744954576576,0.00236793,84461.0,84458.0,0.43472091]
[1744954576818,0.00236793,84461.0,84458.0,0.34]
[1744954579059,0.00236793,84461.0,84458.0,0.43472097]
[1744954579277,0.00236793,84462.0,84460.0,0.09471939]
[1744954580773,0.23680969,84456.0,84449.0,0.13336]
[1744954580999,0.0118409,84453.0,84450.0,0.34]
[1744954581235,0.00236793,84452.0,84450.0,0.34]
[1744954581687,0.01420869,84454.0,84450.0,0.34]
[1744954582559,0.0912,84455.0,84452.0,0.09472743]
[1744954583247,0.0912,84455.0,84453.0,0.0947262]
[1744954583897,0.10304062,84455.0,84452.0,0.09472743]
[1744954584109,0.10304062,84455.0,84450.0,0.09473033]
[1744954584982,0.10304062,84455.0,84452.0,0.09472743]
[1744954585555,0.0912,84455.0,84453.0,0.09472624]
[1744954586162,0.0912,84455.0,84453.0,0.43472624]
[1744954589732,0.0912,84455.0,84453.0,0.34]
[1744954590402,0.0912,84455.0,84453.0,0.43472627]
[1744954593610,0.0912,84455.0,84453.0,0.09472627]
[1744954597179,0.00236793,84454.0,84453.0,0.09472627]
[1744954598561,0.0912,84455.0,84453.0,0.09472627]
[1744954598969,0.00236793,84454.0,84453.0,0.09472627]
[1744954599375,0.0912,84455.0,84453.0,0.09472627]
[1744954600568,0.17628769,84461.0,84457.0,0.09472173]
[1744954600975,0.046,84461.0,84459.0,0.09472039]
[1744954601150,0.001,84461.0,84459.0,0.43472039]
[1744954605987,0.001,84461.0,84459.0,0.09472039]
[1744954609811,0.01283978,84461.0,84457.0,0.09472173]
[1744954609965,0.001,84461.0,84457.0,0.09472173]
[1744954610751,0.001,84461.0,84459.0,0.09472042]
[1744954611343,0.01183964,84462.0,84459.0,0.09472042]
[1744954611487,0.0118395,84463.0,84459.0,0.09472042]
[1744954611689,0.25657131,84464.0,84460.0,0.09471861]
[1744954613265,0.0118395,84463.0,84460.0,0.09471861]
[1744954613463,0.0079426,84464.0,84462.0,0.09471623]
[1744954614873,0.0118395,84463.0,84460.0,0.09471936]
[1744954615068,0.05683978,84461.0,84458.0,0.34]
[1744954615291,0.045,84461.0,84459.0,0.0947196]
[1744954617183,0.01978196,84464.0,84460.0,0.0947187]
[1744954621313,0.01183964,84462.0,84458.0,0.09472096]
[1744954621538,0.01183964,84462.0,84459.0,0.43471978]
[1744954622614,0.0118395,84463.0,84459.0,0.43471978]
[1744954627002,0.0118395,84463.0,84457.0,0.01184034]
[1744954627003,0.0079426,84464.0,84462.0,0.01454085]
[1744954627203,0.0079426,84464.0,84462.0,0.109258]
[1744954629538,0.0079426,84464.0,84460.0,0.07614257]
[1744954629810,0.0079426,84464.0,84462.0,0.09471715]
[1744954630117,0.0079426,84464.0,84459.0,0.34]
[1744954630614,0.0118395,84463.0,84458.0,0.4347208]
[1744954630779,0.01978196,84464.0,84458.0,0.4347208]
[1744954632076,0.01978196,84464.0,84460.0,0.09471939]
[1744954639926,0.0079426,84464.0,84462.0,0.07103736]
[1744954641138,0.01978196,84464.0,84461.0,0.07103824]
[1744954641454,0.0079426,84464.0,84462.0,0.07103711]
[1744954641811,0.0079426,84464.0,84463.0,0.00236777]
[1744954643612,0.0079426,84464.0,84463.0,0.01790862]
[1744954646394,0.0079426,84464.0,84463.0,0.01554085]
[1744954646827,0.0079426,84464.0,84463.0,0.48890085]
[1744954666292,0.0008426,84465.0,84463.0,0.48890085]
[1744954666293,0.0008426,84476.0,84475.0,0.07102693]
[1744954666490,0.00097799,84476.0,84475.0,0.08793505]
[1744954668805,0.00097799,84476.0,84475.0,0.1030872]
[1744954670753,0.00097799,84476.0,84475.0,0.4430872]
[1744954670927,0.00097799,84476.0,84475.0,0.44071993]
[1744954671363,0.00097799,84476.0,84475.0,0.44171993]
[1744954675319,0.00097799,84476.0,84475.0,0.45067844]
[1744954675871,0.00097799,84476.0,84475.0,0.00995851]
[1744954676071,0.00097799,84476.0,84475.0,0.08335261]
[1744954677719,0.00097799,84476.0,84475.0,0.09789346]
[1744954678323,0.0008426,84479.0,84478.0,0.0710244]
[1744954678487,0.0008426,84479.0,84478.0,0.5446244]
[1744954683911,0.0008426,84479.0,84478.0,0.4110244]
[1744954684112,0.0008426,84479.0,84478.0,0.5453844]
[1744954687280,2e-07,84490.0,84487.0,0.01183614]
[1744954687489,0.0008428,84491.0,84489.0,0.07101516]
[1744954687850,0.0008428,84491.0,84490.0,0.00236684]
[1744954688666,0.0008428,84491.0,84490.0,0.01690769]
[1744954688927,0.0008428,84491.0,84490.0,0.5773556]
[1744954689066,0.0008428,84491.0,84490.0,0.57498876]
[1744954689868,0.00091761,84491.0,84490.0,0.57498876]
[1744954696562,0.00091761,84491.0,84490.0,0.45554085]
[1744954703143,0.00091761,84491.0,84490.0,0.58986085]
[1744954713992,0.00091761,84491.0,84490.0,0.58962085]
[1744954731309,0.00091761,84491.0,84490.0,0.58862085]
[1744954731768,0.00091761,84491.0,84490.0,0.65963517]
[1744954760644,0.00091761,84491.0,84490.0,0.58862085]
[1744954761437,0.00091761,84491.0,84490.0,0.65963517]
[1744954766140,0.08180001,84499.0,84495.0,0.07101011]
[1744954766336,1e-08,84500.0,84499.0,0.0855476]
[1744954766556,1e-08,84500.0,84499.0,0.64736191]
[1744954766757,1e-08,84500.0,84499.0,0.64499551]
[1744954768175,0.00080221,84504.0,84503.0,0.08554424]
[1744954768374,0.00080221,84504.0,84503.0,0.08791065]
[1744954768588,0.00080221,84504.0,84503.0,0.18791065]
[1744954771375,0.00080221,84504.0,84503.0,0.19690043]
[1744954771819,0.00080221,84504.0,84503.0,0.31634834]
[1744954772015,0.00080221,84504.0,84503.0,0.31398193]
[1744954773495,0.00080221,84504.0,84501.0,0.01183417]
[1744954773821,0.00080221,84504.0,84503.0,0.1]
[1744954774040,0.00080221,84504.0,84503.0,0.17100339]
[1744954774232,0.00080221,84504.0,84503.0,0.17336977]
[1744954775540,0.00080221,84504.0,84503.0,0.1968764]
[1744954776109,0.00086097,84504.0,84503.0,0.1968764]
[1744954783579,0.0008424,84513.0,84506.0,0.01454085]
[1744954783782,0.00129377,84513.0,84512.0,0.07099583]
[1744954784087,0.00129377,84513.0,84512.0,0.51336207]
[1744954784289,0.00129377,84513.0,84512.0,0.51099583]
[1744954785679,0.0486,84517.0,84514.0,0.07099415]
[1744954785878,0.04865872,84517.0,84515.0,0.1]
[1744954786253,0.04865872,84517.0,84516.0,0.41099247]
[1744954796477,0.04865872,84517.0,84516.0,0.54415247]
[1744954805278,0.0455,84512.0,84509.0,0.34]
[1744954805440,0.0455,84510.0,84509.0,0.41099785]
[1744954814629,0.0453,84516.0,84515.0,0.07099331]
[1744954816408,0.00105872,84517.0,84515.0,0.07099331]
[1744954818938,0.00105872,84517.0,84514.0,0.01183235]
[1744954820103,0.00105872,84517.0,84515.0,0.07099331]
[1744954821088,0.00105872,84517.0,84514.0,0.24722364]
[1744954821741,0.00105872,84517.0,84514.0,0.1]
[1744954821916,0.00105872,84517.0,84515.0,0.07099331]
[1744954825136,0.00105872,84517.0,84516.0,0.34]
[1744954826051,0.00105872,84517.0,84516.0,0.47316]
[1744954826342,0.00105872,84517.0,84516.0,0.48054289]
[1744954828063,0.00105872,84517.0,84516.0,0.58054289]
[1744954833639,0.00105872,84517.0,84516.0,0.57316]
[1744954835405,0.00105872,84517.0,84516.0,0.23316]
[1744954843470,0.00105872,84517.0,84516.0,0.57316]
[1744954843674,0.04915872,84517.0,84516.0,0.57316]
[1744954850269,0.04915872,84517.0,84516.0,0.58054276]
[1744954851135,0.04815872,84517.0,84516.0,0.58054276]
[1744954853845,0.04815872,84517.0,84516.0,0.24058276]
[1744954854370,0.04815872,84517.0,84516.0,0.2332]
[1744954855794,0.04815872,84517.0,84516.0,0.5732]
[1744954862439,5.872e-05,84517.0,84516.0,0.5732]
[1744954865370,5.872e-05,84517.0,84516.0,0.5805822]
[1744954866301,5.872e-05,84517.0,84516.0,0.5732]
[1744954867443,0.0489424,84525.0,84522.0,0.01183123]
[1744954867660,0.0489424,84525.0,84523.0,0.07098659]
[1744954868796,0.0489424,84525.0,84524.0,0.00738213]
[1744954872765,0.0489424,84525.0,84524.0,0.02337874]
[1744954874676,0.0008424,84525.0,84524.0,0.02337874]
[1744954876061,0.0479,84528.0,84525.0,0.42281572]
[1744954876260,0.04794509,84528.0,84525.0,0.42281572]
[1744954876820,0.04794509,84528.0,84526.0,0.00738213]
[1744954877005,0.04794509,84528.0,84527.0,0.07098323]
[1744954877226,0.04794509,84528.0,84527.0,0.07836536]
[1744954878729,0.04794509,84528.0,84527.0,0.08720407]
[1744954882404,0.04794509,84528.0,84527.0,0.07982194]
[1744954890007,0.04794509,84528.0,84526.0,0.22326227]
[1744954890540,0.00236793,84527.0,84525.0,0.08281572]
[1744954890764,0.04794509,84528.0,84527.0,0.07098323]
[1744954892611,0.04794509,84528.0,84527.0,0.07963936]
[1744954898357,4.509e-05,84528.0,84527.0,0.07963936]
[1744954898718,4.509e-05,84528.0,84527.0,0.0870215]
[1744954902278,4.509e-05,84528.0,84525.0,0.08281572]
[1744954903049,4.509e-05,84528.0,84527.0,0.07098323]
[1744954905547,4.509e-05,84528.0,84527.0,0.07978311]
[1744954907143,4.509e-05,84528.0,84526.0,0.20346384]
[1744954908046,4.509e-05,84528.0,84527.0,0.07098323]
[1744954909675,4.509e-05,84528.0,84525.0,0.08281572]
[1744954909813,4.509e-05,84528.0,84526.0,0.00902222]
[1744954910174,4.509e-05,84528.0,84525.0,0.08281572]
[1744954910701,4.509e-05,84528.0,84521.0,0.03269697]
[1744954911757,4.509e-05,84528.0,84523.0,0.34]
[1744954912074,4.509e-05,84528.0,84527.0,0.07098323]
[1744954914504,4.509e-05,84528.0,84527.0,0.07836541]
[1744954922643,4.509e-05,84528.0,84527.0,0.07836558]
[1744954923260,4.509e-05,84528.0,84527.0,0.07098323]
[1744954923664,0.00241302,84528.0,84527.0,0.07098323]
[1744954923855,4.509e-05,84528.0,84527.0,0.07098323]
[1744954924153,0.05061302,84528.0,84527.0,0.07098323]
[1744954930386,0.04824509,84528.0,84527.0,0.07098323]
[1744954944081,4.509e-05,84528.0,84527.0,0.07098323]
[1744954945414,4.509e-05,84528.0,84527.0,0.07836547]
[1744954971963,4.509e-05,84528.0,84525.0,0.45591166]
[1744954972260,4.509e-05,84528.0,84526.0,0.1]
[1744954973010,4.509e-05,84528.0,84527.0,0.07098323]
[1744954973749,0.00079711,84534.0,84533.0,0.08551904]
[1744954973871,0.08515731,84540.0,84535.0,0.01182941]
[1744954974080,0.08515731,84540.0,84537.0,0.01182913]
[1744954974279,0.08515731,84540.0,84537.0,0.08280396]
[1744954974280,4.509e-05,84538.0,84537.0,0.08280396]
[1744954974477,4.509e-05,84538.0,84537.0,0.42280396]
[1744954980361,4.509e-05,84538.0,84536.0,0.07097567]
[1744954980589,4.509e-05,84538.0,84537.0,0.01182913]
[1744954984991,4.509e-05,84538.0,84537.0,0.39914568]
[1744954987612,0.04634509,84538.0,84537.0,0.38731655]
[1744954992383,0.09434509,84538.0,84535.0,0.38731759]
[1744954992587,0.00236793,84537.0,84535.0,0.38731759]
[1744954993350,0.0455,84536.0,84535.0,0.34]
[1744954993541,0.05732927,84536.0,84532.0,0.04731894]
[1744954993749,0.00236793,84535.0,84533.0,0.04731839]
[1744954994119,0.0455,84534.0,84533.0,0.04731839]
[1744954998695,0.001,84537.0,84536.0,0.04731711]
[1744955004655,0.001,84537.0,84536.0,0.48731711]
[1744955006210,0.0465,84537.0,84536.0,0.48731711]
[1744955006411,0.001,84537.0,84536.0,0.38731711]
[1744955014229,0.20828035,84551.0,84538.0,0.04731587]
[1744955014407,0.01182872,84540.0,84537.0,0.34]
[1744955014583,0.24840587,84540.0,84537.0,0.34]
[1744955014783,0.01182844,84542.0,84537.0,0.34]
[1744955015434,0.24839883,84542.0,84536.0,0.001]
[1744955015594,0.24839883,84542.0,84536.0,0.04831708]
[1744955016592,0.01182886,84539.0,84536.0,0.001]
[1744955017313,0.05732886,84539.0,84536.0,0.001]
[1744955018016,0.0455,84539.0,84536.0,0.0483171]
[1744955018216,0.0455,84539.0,84536.0,0.001]
[1744955020957,0.0455,84539.0,84534.0,0.11026915]
[1744955022068,0.0455,84539.0,84535.0,0.04731712]
[1744955024956,0.0455,84539.0,84537.0,0.07097475]
[1744955027480,0.048,84541.0,84539.0,0.07097279]
[1744955028783,0.0478,84544.0,84541.0,0.0709709]
[1744955029844,0.0118276,84548.0,84544.0,0.0709689]
[1744955030062,0.0128276,84548.0,84544.0,0.0709689]
[1744955030359,0.001,84548.0,84545.0,0.07096765]
[1744955031267,0.05792746,84549.0,84545.0,0.07096765]
[1744955031468,0.0461,84549.0,84545.0,0.07096765]
[1744955032768,0.05962648,84556.0,84545.0,0.00872522]
[1744955032967,6.935e-05,84553.0,84544.0,0.01182816]
[1744955033163,6.935e-05,84553.0,84551.0,0.07096237]
[1744955033787,0.01182704,84552.0,84549.0,0.34]
[1744955034529,0.01182704,84552.0,84548.0,0.0709656]
[1744955035449,0.01189625,84553.0,84549.0,0.07096432]
[1744955035609,6.935e-05,84553.0,84549.0,0.07096432]
[1744955035813,6.935e-05,84553.0,84551.0,0.07096259]
[1744955040344,0.01182718,84551.0,84547.0,0.34]
[1744955040543,0.01182718,84551.0,84545.0,0.00902624]
[1744955040544,0.01182732,84550.0,84546.0,0.07096648]
[1744955040751,0.01182718,84551.0,84547.0,0.41096567]
[1744955042778,0.0478,84552.0,84548.0,0.07096508]
[1744955042779,0.05962704,84552.0,84548.0,0.07096508]
[1744955043225,0.01182718,84551.0,84548.0,0.07096508]
[1744955043431,0.01182718,84551.0,84547.0,0.07096567]
[1744955044209,0.13127523,84550.0,84547.0,0.07096567]
[1744955045994,0.11944791,84550.0,84548.0,0.41096494]
[1744955046195,0.11944791,84550.0,84548.0,0.34]
[1744955052603,0.11944791,84550.0,84549.0,0.41096476]
[1744955052876,0.11944791,84550.0,84549.0,0.07096476]
[1744955057360,0.11944791,84550.0,84544.0,0.2689736]
[1744955059047,0.0478,84552.0,84548.0,0.07096487]
[1744955059179,6.935e-05,84553.0,84551.0,0.07096308]
[1744955080206,0.01182704,84552.0,84549.0,0.07096476]
[1744955080388,0.01189625,84553.0,84549.0,0.07096476]
[1744955080596,0.01182704,84552.0,84549.0,0.07096476]
[1744955080770,0.24839047,84545.0,84542.0,0.34]
[1744955080972,0.01182774,84547.0,84542.0,0.4109706]
[1744955081186,0.13127565,84547.0,84542.0,0.4109706]
[1744955081389,0.01182802,84545.0,84542.0,0.4109706]
[1744955081595,0.01182788,84546.0,84542.0,0.4109706]
[1744955084363,0.01182788,84546.0,84542.0,0.0709706]
[1744955086024,0.13127565,84547.0,84543.0,0.07096917]
[1744955086220,0.11944791,84547.0,84543.0,0.07096917]
[1744955086767,0.13127565,84547.0,84543.0,0.07096917]
[1744955090417,0.13127565,84547.0,84544.0,0.0709685]
[1744955090623,0.11944791,84547.0,84544.0,0.0709685]
[1744955093899,0.11944791,84547.0,84540.0,0.08280032]
[1744955094167,0.11944791,84547.0,84543.0,0.07096917]
[1744955095151,0.13127565,84547.0,84544.0,0.07096819]
[1744955095313,0.13127565,84547.0,84543.0,0.07096917]
[1744955097739,0.11944791,84547.0,84544.0,0.07096849]
[1744955098320,0.11944791,84547.0,84546.0,0.07096728]
[1744955098928,0.24837111,84551.0,84548.0,0.41096478]
[1744955099669,0.23654656,84550.0,84548.0,0.41096478]
[1744955100229,0.24837084,84551.0,84549.0,0.07096476]
[1744955101108,0.24837084,84551.0,84548.0,0.07096478]
[1744955105381,0.01182732,84550.0,84549.0,0.0709632]
[1744955105585,0.01182704,84552.0,84549.0,0.0709632]
[1744955105921,0.24837261,84551.0,84548.0,0.0709656]
[1744955106070,0.24837261,84551.0,84548.0,0.4109656]
[1744955106678,0.23654672,84550.0,84548.0,0.4109656]
[1744955108754,0.0118276,84548.0,84546.0,0.41096728]
[1744955109131,0.23655214,84548.0,84546.0,0.34]
[1744955109308,0.35600272,84547.0,84546.0,0.34]
[1744955109719,0.01182872,84540.0,84537.0,0.174609]
[1744955109921,0.24840254,84541.0,84538.0,0.41097372]
[1744955110470,0.23657699,84540.0,84538.0,0.34]
[1744955110699,0.23657699,84540.0,84538.0,0.41097365]
[1744955110917,0.23657999,84538.0,84537.0,0.34]
[1744955112207,0.23657999,84538.0,84535.0,0.01847477]
[1744955112208,0.23658559,84536.0,84535.0,0.01847477]
[1744955112890,0.4042335,84536.0,84535.0,0.01847477]
[1744955113079,0.23660852,84528.0,84527.0,0.34]
[1744955113301,0.23661918,84524.0,84522.0,0.01608881]
[1744955113515,0.01183067,84526.0,84524.0,0.1]
[1744955113718,0.11944791,84535.0,84524.0,0.1]
[1744955113925,0.11944791,84535.0,84525.0,0.514609]
[1744955114125,0.23661078,84527.0,84525.0,0.174609]
[1744955114344,0.23661078,84527.0,84524.0,0.07098566]
[1744955114590,0.23660558,84529.0,84524.0,0.07098566]
[1744955114790,0.23660558,84529.0,84524.0,0.07103075]
[1744955114911,0.23660558,84529.0,84524.0,0.41103075]
[1744955115473,0.24843583,84529.0,84524.0,0.41103075]
[1744955116213,0.24842942,84532.0,84526.0,0.07098385]
[1744955116413,0.01182997,84531.0,84527.0,0.41098287]
[1744955116616,0.01183011,84530.0,84527.0,0.34]
[1744955119073,0.01182969,84533.0,84529.0,0.07098107]
[1744955119272,0.01182997,84531.0,84527.0,0.070983]
[1744955119842,0.01183025,84529.0,84526.0,0.34]
[1744955120059,0.01183011,84530.0,84526.0,0.41098367]
[1744955122045,0.01183011,84530.0,84524.0,4.509e-05]
[1744955122046,0.23661638,84525.0,84524.0,4.509e-05]
[1744955122257,0.23661618,84526.0,84524.0,4.509e-05]
[1744955122460,0.01183053,84527.0,84524.0,0.09469272]
[1744955122609,0.2484406,84528.0,84524.0,0.09469272]